[Event "Early-Titled-Tuesday-Blitz-February-13-2024"]
[Site "Chess.com"]
[Date "2024.02.13"]
[Round "2"]
[White "DenizG123"]
[Black "masterofpuppets2"]
[Result "1-0"]
[WhiteElo "2125"]
[BlackElo "2439"]
[TimeControl "180+1"]
[EndTime "8:20:48 PST"]
[Termination "DenizG123 won by checkmate"]

1. e4 {[%clk 0:03:00.9]} 1... c5 {[%clk 0:02:58]} 2. Nf3 {[%clk 0:03:00.7]} 2...
Nc6 {[%clk 0:02:58.2]} 3. d4 {[%clk 0:03:00.9]} 3... cxd4 {[%clk 0:02:59.1]} 4.
Nxd4 {[%clk 0:03:01]} 4... Nf6 {[%clk 0:02:59.9]} 5. Nc3 {[%clk 0:03:01.2]} 5...
d6 {[%clk 0:03:00.2]} 6. Be2 {[%clk 0:02:58.1]} 6... e6 {[%clk 0:02:58.9]} 7.
Bg5 {[%clk 0:02:46.8]} 7... Be7 {[%clk 0:02:56.7]} 8. Qd2 {[%clk 0:02:45.4]}
8... a6 {[%clk 0:02:50.7]} 9. O-O-O {[%clk 0:02:43.1]} 9... O-O {[%clk
0:02:44.6]} 10. Nxc6 {[%clk 0:02:35.3]} 10... bxc6 {[%clk 0:02:43.8]} 11. Bxf6
{[%clk 0:02:35.2]} 11... Bxf6 {[%clk 0:02:42.9]} 12. Qxd6 {[%clk 0:02:34.7]}
12... Qb6 {[%clk 0:02:38]} 13. e5 {[%clk 0:01:45.4]} 13... Bg5+ {[%clk
0:02:23.9]} 14. Kb1 {[%clk 0:01:45.3]} 14... Qxf2 {[%clk 0:02:23.4]} 15. Bf3
{[%clk 0:01:36.2]} 15... Qa7 {[%clk 0:01:57.9]} 16. Ne4 {[%clk 0:00:49.1]} 16...
Be7 {[%clk 0:01:56]} 17. Qxc6 {[%clk 0:00:46.6]} 17... Rb8 {[%clk 0:01:48.1]}
18. Nd6 {[%clk 0:00:41.7]} 18... Bd7 {[%clk 0:01:44.2]} 19. Qe4 {[%clk
0:00:34.5]} 19... Qb6 {[%clk 0:01:32.6]} 20. Nc4 {[%clk 0:00:31.9]} 20... Qc7
{[%clk 0:01:30.5]} 21. Nd6 {[%clk 0:00:19.4]} 21... Rb6 {[%clk 0:01:26.5]} 22.
Rd3 {[%clk 0:00:18.8]} 22... Rc6 {[%clk 0:01:07.6]} 23. Rc1 {[%clk 0:00:16.3]}
23... Bxd6 {[%clk 0:00:59.2]} 24. exd6 {[%clk 0:00:16.2]} 24... Rxd6 {[%clk
0:00:59.7]} 25. Rxd6 {[%clk 0:00:15.8]} 25... Qxd6 {[%clk 0:01:00.6]} 26. Rd1
{[%clk 0:00:15.9]} 26... Qc7 {[%clk 0:00:59.8]} 27. Qd4 {[%clk 0:00:14.5]} 27...
Bb5 {[%clk 0:00:55.9]} 28. a4 {[%clk 0:00:12.9]} 28... Be8 {[%clk 0:00:48]} 29.
Be2 {[%clk 0:00:12.9]} 29... Qxh2 {[%clk 0:00:41.9]} 30. Bxa6 {[%clk 0:00:12.4]}
30... Qxg2 {[%clk 0:00:41.9]} 31. Bd3 {[%clk 0:00:12.8]} 31... Qb7 {[%clk
0:00:26.4]} 32. Rg1 {[%clk 0:00:13.4]} 32... f6 {[%clk 0:00:25.9]} 33. Qh4
{[%clk 0:00:13.5]} 33... f5 {[%clk 0:00:23.8]} 34. Qc4 {[%clk 0:00:11.4]} 34...
Bf7 {[%clk 0:00:19.9]} 35. Qd4 {[%clk 0:00:11.5]} 35... Bg6 {[%clk 0:00:19.3]}
36. Bc4 {[%clk 0:00:11.5]} 36... Kh8 {[%clk 0:00:14.7]} 37. Bxe6 {[%clk
0:00:10.4]} 37... f4 {[%clk 0:00:14.8]} 38. Bb3 {[%clk 0:00:10.5]} 38... f3
{[%clk 0:00:14.3]} 39. Qe3 {[%clk 0:00:08.5]} 39... f2 {[%clk 0:00:12.2]} 40.
Rf1 {[%clk 0:00:08.3]} 40... Qg2 {[%clk 0:00:12.1]} 41. Bc4 {[%clk 0:00:06.5]}
41... h5 {[%clk 0:00:11.2]} 42. a5 {[%clk 0:00:06.2]} 42... h4 {[%clk
0:00:11.4]} 43. Qe7 {[%clk 0:00:05.9]} 43... Qf3 {[%clk 0:00:08.4]} 44. Qxh4+
{[%clk 0:00:04.7]} 44... Bh7 {[%clk 0:00:08.9]} 45. Bd3 {[%clk 0:00:03.7]} 45...
g6 {[%clk 0:00:06.9]} 46. Bxg6 {[%clk 0:00:03.5]} 46... Rf7 {[%clk 0:00:06.7]}
47. Bxf7 {[%clk 0:00:03.2]} 47... Qxf7 {[%clk 0:00:07.6]} 48. Qxf2 {[%clk
0:00:02.6]} 48... Qe7 {[%clk 0:00:07.3]} 49. Qf8+ {[%clk 0:00:01.9]} 49... Qxf8
{[%clk 0:00:06.5]} 50. Rxf8+ {[%clk 0:00:02.8]} 50... Kg7 {[%clk 0:00:07.2]} 51.
Rf1 {[%clk 0:00:02.6]} 51... Be4 {[%clk 0:00:07.4]} 52. Re1 {[%clk 0:00:01.2]}
52... Bd5 {[%clk 0:00:08.3]} 53. b4 {[%clk 0:00:01.8]} 53... Bc4 {[%clk
0:00:09.2]} 54. c3 {[%clk 0:00:02.5]} 54... Bb5 {[%clk 0:00:09.8]} 55. Kc2
{[%clk 0:00:03.4]} 55... Ba4+ {[%clk 0:00:10.6]} 56. Kd2 {[%clk 0:00:04.3]}
56... Bb5 {[%clk 0:00:11.5]} 57. Ke3 {[%clk 0:00:05.1]} 57... Ba6 {[%clk
0:00:12.2]} 58. Kd4 {[%clk 0:00:06]} 58... Bb5 {[%clk 0:00:13]} 59. Kc5 {[%clk
0:00:06.9]} 59... Ba6 {[%clk 0:00:13.9]} 60. Kb6 {[%clk 0:00:07.2]} 60... Bc8
{[%clk 0:00:14.8]} 61. a6 {[%clk 0:00:07.4]} 61... Bg4 {[%clk 0:00:15.7]} 62. a7
{[%clk 0:00:07.3]} 62... Bf3 {[%clk 0:00:16.6]} 63. c4 {[%clk 0:00:07.5]} 63...
Ba8 {[%clk 0:00:16.9]} 64. c5 {[%clk 0:00:08.4]} 64... Bf3 {[%clk 0:00:17.3]}
65. c6 {[%clk 0:00:09.3]} 65... Kg6 {[%clk 0:00:17.8]} 66. c7 {[%clk 0:00:09.8]}
66... Kg5 {[%clk 0:00:18.7]} 67. c8=Q {[%clk 0:00:10]} 67... Bg4 {[%clk
0:00:19.6]} 68. Qc5+ {[%clk 0:00:09.7]} 68... Kf4 {[%clk 0:00:20.5]} 69. Qe5+
{[%clk 0:00:09.2]} 69... Kf3 {[%clk 0:00:20.3]} 70. Qe3+ {[%clk 0:00:09]} 70...
Kg2 {[%clk 0:00:20.9]} 71. Rg1+ {[%clk 0:00:09.8]} 71... Kh2 {[%clk 0:00:21.7]}
72. Qg3# {[%clk 0:00:10.4]} 1-0

[Event "Early-Titled-Tuesday-Blitz-February-13-2024"]
[Site "Chess.com"]
[Date "2024.02.13"]
[Round "2"]
[White "ccccvhhhj"]
[Black "BeardedNM"]
[Result "1-0"]
[WhiteElo "2493"]
[BlackElo "2205"]
[TimeControl "180+1"]
[EndTime "8:20:51 PST"]
[Termination "ccccvhhhj won on time"]

1. e4 {[%clk 0:03:00.9]} 1... e6 {[%clk 0:03:00.4]} 2. Nf3 {[%clk 0:03:01]} 2...
d5 {[%clk 0:03:01.3]} 3. e5 {[%clk 0:03:01.5]} 3... c5 {[%clk 0:03:01.2]} 4. b4
{[%clk 0:03:02.2]} 4... cxb4 {[%clk 0:03:02.1]} 5. a3 {[%clk 0:03:02.9]} 5...
bxa3 {[%clk 0:03:00.8]} 6. Nxa3 {[%clk 0:03:03.8]} 6... Nc6 {[%clk 0:03:00]} 7.
c3 {[%clk 0:03:04.1]} 7... Bd7 {[%clk 0:02:52.6]} 8. d4 {[%clk 0:03:04.6]} 8...
a6 {[%clk 0:02:52.7]} 9. Bd3 {[%clk 0:03:05.2]} 9... Na5 {[%clk 0:02:52]} 10.
O-O {[%clk 0:03:05.4]} 10... Rc8 {[%clk 0:02:49.4]} 11. Bd2 {[%clk 0:03:00.1]}
11... Bxa3 {[%clk 0:02:44.4]} 12. Rxa3 {[%clk 0:02:59.6]} 12... Nc4 {[%clk
0:02:39.4]} 13. Ra1 {[%clk 0:02:44.2]} 13... Bb5 {[%clk 0:02:36.4]} 14. Bc1
{[%clk 0:02:40]} 14... Ne7 {[%clk 0:02:32.3]} 15. Re1 {[%clk 0:02:39.6]} 15...
h6 {[%clk 0:02:24.6]} 16. Bc2 {[%clk 0:02:18.4]} 16... O-O {[%clk 0:02:09.2]}
17. Nd2 {[%clk 0:02:15.9]} 17... Nf5 {[%clk 0:01:57.1]} 18. Nb3 {[%clk
0:02:03.9]} 18... b6 {[%clk 0:01:49.2]} 19. Qg4 {[%clk 0:01:57.6]} 19... Bd7
{[%clk 0:01:12.8]} 20. Rxa6 {[%clk 0:01:48.1]} 20... Na5 {[%clk 0:01:12.4]} 21.
Nxa5 {[%clk 0:01:41.2]} 21... bxa5 {[%clk 0:01:12]} 22. Bd2 {[%clk 0:01:31.6]}
22... Bb5 {[%clk 0:01:01]} 23. Rd6 {[%clk 0:00:47.9]} 23... Nxd6 {[%clk
0:00:55.9]} 24. exd6 {[%clk 0:00:48.8]} 24... f5 {[%clk 0:00:37.2]} 25. Qg3
{[%clk 0:00:43.6]} 25... Qf6 {[%clk 0:00:28.2]} 26. h4 {[%clk 0:00:41.9]} 26...
a4 {[%clk 0:00:19]} 27. Bf4 {[%clk 0:00:42.4]} 27... a3 {[%clk 0:00:16]} 28. Be5
{[%clk 0:00:42.5]} 28... Qf7 {[%clk 0:00:14.6]} 29. Ra1 {[%clk 0:00:42.4]} 29...
Ra8 {[%clk 0:00:14.1]} 30. Bb3 {[%clk 0:00:31.4]} 30... Bc4 {[%clk 0:00:12.2]}
31. Bxc4 {[%clk 0:00:28.9]} 31... dxc4 {[%clk 0:00:13.1]} 32. Qf3 {[%clk
0:00:29.8]} 32... Qd7 {[%clk 0:00:08.5]} 33. Kh2 {[%clk 0:00:27.6]} 33... Ra6
{[%clk 0:00:07.3]} 34. Qe2 {[%clk 0:00:23]} 34... Rfa8 {[%clk 0:00:02.7]} 35.
Qxc4 {[%clk 0:00:22.3]} 35... a2 {[%clk 0:00:02.7]} 36. Qe2 {[%clk 0:00:19.4]}
36... Rxd6 {[%clk 0:00:02.8]} 37. Rxa2 {[%clk 0:00:14.7]} 37... Rxa2 {[%clk
0:00:03.7]} 38. Qxa2 {[%clk 0:00:15.3]} 38... Rd5 {[%clk 0:00:04.4]} 39. Qa8+
{[%clk 0:00:13.8]} 39... Kh7 {[%clk 0:00:04.5]} 40. Qf8 {[%clk 0:00:13.8]} 40...
Rxe5 {[%clk 0:00:04.6]} 41. dxe5 {[%clk 0:00:14.7]} 41... Qd5 {[%clk 0:00:04.4]}
42. f4 {[%clk 0:00:13.3]} 42... Qe4 {[%clk 0:00:04.5]} 43. Kg3 {[%clk 0:00:13]}
43... Qe3+ {[%clk 0:00:04.4]} 44. Kh2 {[%clk 0:00:13.5]} 44... Qxf4+ {[%clk
0:00:04.8]} 45. Kg1 {[%clk 0:00:14.2]} 45... Qc1+ {[%clk 0:00:04.5]} 46. Kh2
{[%clk 0:00:13.5]} 46... Qf4+ {[%clk 0:00:04.8]} 47. Kh1 {[%clk 0:00:13.5]}
47... Qxe5 {[%clk 0:00:05.2]} 48. Qc8 {[%clk 0:00:12.3]} 48... Qe1+ {[%clk
0:00:05.1]} 49. Kh2 {[%clk 0:00:13.1]} 49... Qxh4+ {[%clk 0:00:05.3]} 50. Kg1
{[%clk 0:00:13.9]} 50... Qe1+ {[%clk 0:00:05.3]} 51. Kh2 {[%clk 0:00:14]} 51...
Qe5+ {[%clk 0:00:05.2]} 52. Kg1 {[%clk 0:00:13.4]} 52... f4 {[%clk 0:00:05.4]}
53. c4 {[%clk 0:00:12.7]} 53... Qe1+ {[%clk 0:00:03.9]} 54. Kh2 {[%clk
0:00:12.7]} 54... Qg3+ {[%clk 0:00:04.3]} 55. Kh1 {[%clk 0:00:12.6]} 55... f3
{[%clk 0:00:04.8]} 56. gxf3 {[%clk 0:00:13.5]} 56... Qxf3+ {[%clk 0:00:04.9]}
57. Kh2 {[%clk 0:00:14.3]} 57... Qf4+ {[%clk 0:00:04.7]} 58. Kg2 {[%clk
0:00:14.5]} 58... e5 {[%clk 0:00:04.7]} 59. c5 {[%clk 0:00:14.2]} 59... e4
{[%clk 0:00:04.4]} 60. c6 {[%clk 0:00:14.5]} 60... e3 {[%clk 0:00:04.3]} 61. Qe8
{[%clk 0:00:13.9]} 61... Qf2+ {[%clk 0:00:04.1]} 62. Kh3 {[%clk 0:00:14.6]}
62... e2 {[%clk 0:00:02.2]} 63. c7 {[%clk 0:00:14]} 1-0

[Event "Early-Titled-Tuesday-Blitz-February-13-2024"]
[Site "Chess.com"]
[Date "2024.02.13"]
[Round "2"]
[White "Sl4werThanYou"]
[Black "Alexander_Donchenko"]
[Result "1-0"]
[WhiteElo "2649"]
[BlackElo "2922"]
[TimeControl "180+1"]
[EndTime "8:20:54 PST"]
[Termination "Sl4werThanYou won by checkmate"]

1. e4 {[%clk 0:03:00.9]} 1... c5 {[%clk 0:02:59.6]} 2. Nf3 {[%clk 0:03:00.6]}
2... e6 {[%clk 0:02:59.9]} 3. d4 {[%clk 0:02:55]} 3... cxd4 {[%clk 0:03:00.8]}
4. Nxd4 {[%clk 0:02:55.8]} 4... Nc6 {[%clk 0:03:00.8]} 5. Nc3 {[%clk 0:02:49.1]}
5... Qc7 {[%clk 0:03:01]} 6. Be2 {[%clk 0:02:39.3]} 6... Nf6 {[%clk 0:02:59.9]}
7. O-O {[%clk 0:02:37.8]} 7... a6 {[%clk 0:02:59.9]} 8. Be3 {[%clk 0:02:34.7]}
8... Be7 {[%clk 0:02:56.5]} 9. Nb3 {[%clk 0:02:27.4]} 9... O-O {[%clk 0:02:54]}
10. f4 {[%clk 0:02:27.7]} 10... d6 {[%clk 0:02:53.7]} 11. Bf3 {[%clk 0:02:23.5]}
11... b5 {[%clk 0:02:51.6]} 12. g4 {[%clk 0:02:21.4]} 12... Bb7 {[%clk
0:02:49.9]} 13. g5 {[%clk 0:02:21.3]} 13... Nd7 {[%clk 0:02:50.2]} 14. h4 {[%clk
0:02:18.9]} 14... Na5 {[%clk 0:02:44.4]} 15. Nxa5 {[%clk 0:02:17]} 15... Qxa5
{[%clk 0:02:45.3]} 16. h5 {[%clk 0:02:11.6]} 16... g6 {[%clk 0:02:31.4]} 17. h6
{[%clk 0:02:08.8]} 17... Rac8 {[%clk 0:02:22.3]} 18. Qd3 {[%clk 0:01:47.5]}
18... b4 {[%clk 0:02:10.9]} 19. Ne2 {[%clk 0:01:44.6]} 19... Nc5 {[%clk
0:02:11]} 20. Qd4 {[%clk 0:01:41]} 20... e5 {[%clk 0:02:11.2]} 21. fxe5 {[%clk
0:01:40.7]} 21... Ne6 {[%clk 0:02:11]} 22. Qa7 {[%clk 0:01:33.6]} 22... Rb8
{[%clk 0:01:43.7]} 23. exd6 {[%clk 0:01:21.2]} 23... Bxd6 {[%clk 0:01:36.5]} 24.
Rad1 {[%clk 0:01:09.3]} 24... Qe5 {[%clk 0:01:30.7]} 25. Rf2 {[%clk 0:00:57.1]}
25... Nxg5 {[%clk 0:01:30.1]} 26. Bg2 {[%clk 0:00:52.2]} 26... Qh2+ {[%clk
0:01:14.2]} 27. Kf1 {[%clk 0:00:52.1]} 27... Nh3 {[%clk 0:01:15.1]} 28. Rxd6
{[%clk 0:00:33.4]} 28... Qxd6 {[%clk 0:01:09.3]} 29. Bxh3 {[%clk 0:00:31.8]}
29... Qd1+ {[%clk 0:01:06.3]} 30. Kg2 {[%clk 0:00:29.3]} 30... Bxe4+ {[%clk
0:01:07.2]} 31. Kg3 {[%clk 0:00:25.8]} 31... Qd6+ {[%clk 0:00:33.2]} 32. Bf4
{[%clk 0:00:23.8]} 32... Qd5 {[%clk 0:00:27.7]} 33. Qd4 {[%clk 0:00:19.3]} 33...
Qxd4 {[%clk 0:00:25.2]} 34. Nxd4 {[%clk 0:00:20.2]} 34... Rbd8 {[%clk
0:00:23.7]} 35. Be5 {[%clk 0:00:19]} 35... Rfe8 {[%clk 0:00:15.8]} 36. Kf4
{[%clk 0:00:17.8]} 36... Rd5 {[%clk 0:00:13.1]} 37. Bf6 {[%clk 0:00:09.7]} 37...
g5+ {[%clk 0:00:11.1]} 38. Kg3 {[%clk 0:00:07.6]} 38... Bg6 {[%clk 0:00:09.7]}
39. Bg2 {[%clk 0:00:05]} 39... Rd6 {[%clk 0:00:07.6]} 40. Nc6 {[%clk 0:00:03.7]}
40... Ree6 {[%clk 0:00:03.3]} 41. Ne7+ {[%clk 0:00:01.2]} 41... Kf8 {[%clk
0:00:04.1]} 42. Nxg6+ {[%clk 0:00:01.8]} 42... fxg6 {[%clk 0:00:03.6]} 43. Be5+
{[%clk 0:00:01.8]} 43... Ke7 {[%clk 0:00:04.4]} 44. Bxd6+ {[%clk 0:00:02.4]}
44... Kxd6 {[%clk 0:00:05.3]} 45. Bh3 {[%clk 0:00:02.5]} 45... Re3+ {[%clk
0:00:05.2]} 46. Kg2 {[%clk 0:00:02.7]} 46... Ke7 {[%clk 0:00:05]} 47. Bg4 {[%clk
0:00:02.8]} 47... Re4 {[%clk 0:00:05.3]} 48. Re2 {[%clk 0:00:03.2]} 48... Rxe2+
{[%clk 0:00:05.4]} 49. Bxe2 {[%clk 0:00:04.1]} 49... a5 {[%clk 0:00:05.9]} 50.
Bc4 {[%clk 0:00:04.1]} 50... Kf6 {[%clk 0:00:06.6]} 51. Bg8 {[%clk 0:00:04.6]}
51... g4 {[%clk 0:00:07]} 52. Bxh7 {[%clk 0:00:05.1]} 52... Kg5 {[%clk
0:00:07.9]} 53. Bg8 {[%clk 0:00:03.8]} 53... Kxh6 {[%clk 0:00:08.5]} 54. Kg3
{[%clk 0:00:04.6]} 54... Kg5 {[%clk 0:00:08.9]} 55. Be6 {[%clk 0:00:05.5]} 55...
Kf6 {[%clk 0:00:09.3]} 56. Bxg4 {[%clk 0:00:06.2]} 56... Ke5 {[%clk 0:00:10.2]}
57. Kf3 {[%clk 0:00:06]} 57... Kd4 {[%clk 0:00:10.6]} 58. Ke2 {[%clk 0:00:06.7]}
58... Ke4 {[%clk 0:00:10.1]} 59. Bd7 {[%clk 0:00:06.7]} 59... g5 {[%clk
0:00:10.5]} 60. c3 {[%clk 0:00:06.3]} 60... bxc3 {[%clk 0:00:10.4]} 61. bxc3
{[%clk 0:00:07.2]} 61... Kd5 {[%clk 0:00:10.9]} 62. Kd3 {[%clk 0:00:07.6]} 62...
Kd6 {[%clk 0:00:11.7]} 63. Bg4 {[%clk 0:00:08.3]} 63... Kc5 {[%clk 0:00:12.6]}
64. c4 {[%clk 0:00:08.8]} 64... a4 {[%clk 0:00:12.8]} 65. a3 {[%clk 0:00:09]}
65... Kc6 {[%clk 0:00:13.1]} 66. Kd4 {[%clk 0:00:09.9]} 66... Kd6 {[%clk
0:00:13.4]} 67. c5+ {[%clk 0:00:10.8]} 67... Kc7 {[%clk 0:00:13.9]} 68. Bf3
{[%clk 0:00:11.7]} 68... Kd7 {[%clk 0:00:13.9]} 69. c6+ {[%clk 0:00:12.2]} 69...
Kc7 {[%clk 0:00:14.4]} 70. Kc5 {[%clk 0:00:12.6]} 70... Kc8 {[%clk 0:00:14.6]}
71. Kd6 {[%clk 0:00:12.8]} 71... Kd8 {[%clk 0:00:14.9]} 72. c7+ {[%clk
0:00:13.4]} 72... Kc8 {[%clk 0:00:15.7]} 73. Bg4+ {[%clk 0:00:14]} 73... Kb7
{[%clk 0:00:16.6]} 74. c8=Q+ {[%clk 0:00:14.7]} 74... Kb6 {[%clk 0:00:17.3]} 75.
Qc5+ {[%clk 0:00:14.9]} 75... Ka6 {[%clk 0:00:17.6]} 76. Be2+ {[%clk 0:00:15.2]}
76... Kb7 {[%clk 0:00:18]} 77. Qc7+ {[%clk 0:00:15.4]} 77... Ka8 {[%clk
0:00:17.9]} 78. Bf3# {[%clk 0:00:16.2]} 1-0

[Event "Early-Titled-Tuesday-Blitz-February-13-2024"]
[Site "Chess.com"]
[Date "2024.02.13"]
[Round "2"]
[White "Iuckyducky"]
[Black "FARIZA2018"]
[Result "0-1"]
[WhiteElo "2264"]
[BlackElo "2513"]
[TimeControl "180+1"]
[EndTime "8:20:55 PST"]
[Termination "FARIZA2018 won by resignation"]

1. d4 {[%clk 0:02:53]} 1... Nf6 {[%clk 0:02:59.9]} 2. c4 {[%clk 0:02:47.3]} 2...
e6 {[%clk 0:02:58]} 3. Nf3 {[%clk 0:02:44.9]} 3... d5 {[%clk 0:02:58.1]} 4. g3
{[%clk 0:02:43.5]} 4... dxc4 {[%clk 0:02:57.2]} 5. Bg2 {[%clk 0:02:43.5]} 5...
c5 {[%clk 0:02:57.3]} 6. O-O {[%clk 0:02:41.2]} 6... Nc6 {[%clk 0:02:57]} 7.
dxc5 {[%clk 0:02:09]} 7... Qxd1 {[%clk 0:02:56.6]} 8. Rxd1 {[%clk 0:02:03.6]}
8... Bxc5 {[%clk 0:02:56.9]} 9. Nbd2 {[%clk 0:01:59.8]} 9... c3 {[%clk
0:02:56.8]} 10. bxc3 {[%clk 0:01:58.1]} 10... O-O {[%clk 0:02:56.5]} 11. Nb3
{[%clk 0:01:56.6]} 11... Be7 {[%clk 0:02:51.9]} 12. Nfd4 {[%clk 0:01:43.3]}
12... Bd7 {[%clk 0:02:51.8]} 13. Bg5 {[%clk 0:01:32.5]} 13... Rfd8 {[%clk
0:02:41.9]} 14. Rd2 {[%clk 0:01:20.3]} 14... h6 {[%clk 0:02:35.6]} 15. Bf4
{[%clk 0:01:11.6]} 15... Rac8 {[%clk 0:02:22.6]} 16. Rad1 {[%clk 0:01:04]} 16...
Nxd4 {[%clk 0:01:47.3]} 17. cxd4 {[%clk 0:00:54.8]} 17... Bc6 {[%clk 0:01:43.1]}
18. Bxc6 {[%clk 0:00:49]} 18... Rxc6 {[%clk 0:01:42.9]} 19. Na5 {[%clk
0:00:49.5]} 19... Rb6 {[%clk 0:01:41.7]} 20. Bc7 {[%clk 0:00:49.1]} 20... Rb4
{[%clk 0:00:54]} 21. Bxd8 {[%clk 0:00:47.6]} 21... Bxd8 {[%clk 0:00:54.2]} 22.
Nb3 {[%clk 0:00:46.3]} 22... a5 {[%clk 0:00:54.4]} 23. f3 {[%clk 0:00:38.1]}
23... a4 {[%clk 0:00:52.8]} 24. Nc5 {[%clk 0:00:38.4]} 24... b6 {[%clk
0:00:52.1]} 25. Nd3 {[%clk 0:00:25.3]} 25... Rc4 {[%clk 0:00:51.3]} 26. Nb2
{[%clk 0:00:24.5]} 26... Rb4 {[%clk 0:00:50.3]} 27. a3 {[%clk 0:00:20.6]} 27...
Rb3 {[%clk 0:00:48.8]} 28. Nxa4 {[%clk 0:00:21.1]} 28... Rxa3 {[%clk 0:00:48.9]}
29. Nb2 {[%clk 0:00:18.9]} 29... Nd5 {[%clk 0:00:48.9]} 30. Rd3 {[%clk
0:00:17.6]} 30... Ra2 {[%clk 0:00:40.5]} 31. Rb3 {[%clk 0:00:17.6]} 31... f5
{[%clk 0:00:28.6]} 32. e4 {[%clk 0:00:15.8]} 32... fxe4 {[%clk 0:00:28.5]} 33.
fxe4 {[%clk 0:00:16.7]} 33... Nf6 {[%clk 0:00:27.2]} 34. e5 {[%clk 0:00:14.9]}
34... Nd5 {[%clk 0:00:27.3]} 35. h4 {[%clk 0:00:13.6]} 35... g5 {[%clk
0:00:26.2]} 36. hxg5 {[%clk 0:00:07.1]} 36... Bxg5 {[%clk 0:00:26.3]} 37. Kf2
{[%clk 0:00:06.1]} 37... Be7 {[%clk 0:00:11.1]} 38. Kf3 {[%clk 0:00:06.3]} 38...
Kf7 {[%clk 0:00:08.2]} 39. Rc1 {[%clk 0:00:06.8]} 39... Bg5 {[%clk 0:00:02.2]}
40. Rc6 {[%clk 0:00:06.9]} 40... Ra5 {[%clk 0:00:02.4]} 41. Nc4 {[%clk
0:00:06.8]} 41... Ra1 {[%clk 0:00:02.3]} 42. Nxb6 {[%clk 0:00:07]} 42... Rf1+
{[%clk 0:00:02.4]} 43. Kg2 {[%clk 0:00:07.5]} 43... Rd1 {[%clk 0:00:02.1]} 44.
Rc4 {[%clk 0:00:05.3]} 44... Ne3+ {[%clk 0:00:01.6]} 45. Rxe3 {[%clk 0:00:05.6]}
45... Bxe3 {[%clk 0:00:02.2]} 46. Rc8 {[%clk 0:00:02.5]} 46... Rxd4 {[%clk
0:00:02.1]} 47. Na8 {[%clk 0:00:01.7]} 47... Rd2+ {[%clk 0:00:02.4]} 48. Kf3
{[%clk 0:00:01.8]} 48... Bd4 {[%clk 0:00:02.8]} 49. Ke4 {[%clk 0:00:02.2]} 49...
Bb2 {[%clk 0:00:03.1]} 50. Nc7 {[%clk 0:00:02.5]} 50... Re2+ {[%clk 0:00:03.4]}
51. Kf3 {[%clk 0:00:02.6]} 51... Rxe5 {[%clk 0:00:03.9]} 52. Na6 {[%clk
0:00:02.2]} 52... Rf5+ {[%clk 0:00:04]} 53. Kg4 {[%clk 0:00:02.3]} 53... Be5
{[%clk 0:00:04.4]} 54. Rh8 {[%clk 0:00:02]} 54... Rg5+ {[%clk 0:00:04.7]} 55.
Kh4 {[%clk 0:00:02.6]} 55... Bxh8 {[%clk 0:00:05.2]} 0-1